bitfinex/quotes_SOLUSD_20240809
["timestamp","ask_amount","ask_price","bid_price","bid_amount"]
[1723230848034,34.8722,154.03,153.93,53.26799499]
[1723230848239,20.12549,154.02,153.93,53.26799499]
[1723230848457,20.0,154.02,153.93,53.26799499]
[1723230848638,20.0,154.02,153.93,53.27235528]
[1723230848959,26.4922,154.03,153.93,53.27235528]
[1723230849259,30.65860364,154.04,153.93,53.27235528]
[1723230849462,17.72531364,154.04,153.97,28.38]
[1723230849645,16.595,154.04,153.97,28.38]
[1723230849849,28.38,154.03,153.94,9.58985528]
[1723230850186,6.4935,154.0,153.93,24.89235528]
[1723230850356,16.595,154.04,153.97,28.38]
[1723230850538,23.0868,154.04,153.98,1.29867767]
[1723230850962,6.4922,154.03,153.97,28.38]
[1723230851145,6.4922,154.03,153.95,28.38]
[1723230851342,1.13017378,154.06,153.99,28.38]
[1723230851545,23.0347,154.09,153.99,28.38]
[1723230851546,6.4908,154.07,153.99,28.38]
[1723230851845,6.491,154.06,153.99,28.38]
[1723230852538,6.4906,154.07,153.99,28.38]
[1723230852747,23.0347,154.09,153.99,58.38]
[1723230852948,29.5244,154.09,153.99,58.38]
[1723230853140,16.3981,154.09,154.01,28.38]
[1723230853349,6.4899,154.09,154.01,28.38]
[1723230853552,28.38,154.1,153.99,58.38]
[1723230853759,28.38,154.1,154.0,30.0]
[1723230853936,28.38,154.08,154.0,30.0]
[1723230854144,6.4906,154.07,154.0,30.0]
[1723230854638,0.12549,154.06,154.0,30.0]
[1723230855250,6.4914,154.05,154.0,30.0]
[1723230855455,0.12549,154.06,153.96,21.6043]
[1723230855456,43.58689,154.06,153.96,21.6043]
[1723230855661,50.07789,154.06,153.96,21.6043]
[1723230856742,6.4915,154.05,153.96,21.6043]
[1723230856942,0.12549,154.04,153.96,21.6043]
[1723230857646,0.12549,154.05,153.96,21.6043]
[1723230858046,0.12549,154.05,153.97,28.38]
[1723230858571,21.5725,154.06,153.97,28.38]
[1723230858870,0.12549,154.05,153.97,28.38]
[1723230861773,15.0814,154.06,153.97,28.38]
[1723230863369,21.5724,154.06,153.97,28.38]
[1723230863677,49.9524,154.06,153.97,28.38]
[1723230864753,6.4914,154.05,153.96,21.6043]
[1723230864940,43.4614,154.06,153.96,21.6043]
[1723230864941,49.9524,154.06,153.96,21.6043]
[1723230865871,43.4614,154.06,153.96,21.6043]
[1723230866061,43.4614,154.06,153.97,28.38]
[1723230866571,15.0814,154.06,153.99,28.38]
[1723230867277,34.8697,154.09,153.99,28.38]
[1723230867567,20.0,154.08,153.99,28.38]
[1723230869192,26.4901,154.08,153.99,28.38]
[1723230869871,6.4905,154.07,153.99,28.38]
[1723230870066,20.0,154.08,153.99,28.38]
[1723230870574,26.4902,154.08,153.99,28.38]
[1723230870766,20.0,154.08,153.99,28.38]
[1723230870966,26.4904,154.08,153.99,28.38]
[1723230871279,26.4904,154.08,153.97,28.38]
[1723230871585,34.8705,154.07,153.97,28.38]
[1723230872473,28.38,154.07,153.97,28.38]
[1723230873667,34.8707,154.07,153.97,28.38]
[1723230874048,28.38,154.07,153.97,28.38]
[1723230874250,34.8706,154.07,153.97,28.38]
[1723230875868,28.38,154.07,153.97,28.38]
[1723230876075,20.0,154.08,153.97,28.38]
[1723230877071,20.0,154.08,153.99,28.38]
[1723230877263,35.24647,154.09,153.99,28.38]
[1723230877952,34.99549,154.09,153.99,28.38]
[1723230878460,6.4902,154.08,153.99,28.38]
[1723230881177,34.8705,154.07,153.97,37.96068096]
[1723230881669,19.45,154.05,153.97,29.03068096]
[1723230882366,19.45,154.06,153.98,19.45]
[1723230882964,19.45,154.06,153.99,19.45]
[1723230884086,19.45,154.08,154.01,19.45]
[1723230884259,19.45,154.08,154.0,19.45]
[1723230884858,22.1361,154.1,154.0,19.45]
[1723230885062,19.45,154.08,154.0,19.45]
[1723230886067,19.45,154.05,153.98,9.57632405]
[1723230887465,19.45,154.05,153.98,19.45]
[1723230887685,28.36,154.07,153.98,9.56778214]
[1723230888562,28.36,154.07,153.99,9.56778214]
[1723230888761,28.36,154.07,153.98,9.56778214]
[1723230889381,28.36,154.07,153.99,9.56778214]
[1723230889858,28.36,154.09,153.99,39.22636477]
[1723230890064,28.36,154.09,153.99,37.92778214]
[1723230890859,28.36,154.09,154.0,1.29835609]
[1723230891184,28.36,154.09,153.99,37.92778214]
[1723230891384,0.25098,154.08,153.99,37.92778214]
[1723230891557,0.25098,154.08,154.0,1.2985054]
[1723230892275,0.25098,154.08,154.0,10.86628754]
[1723230892582,34.8497,154.09,154.0,10.86628754]
[1723230893364,6.61569,154.08,154.0,9.56778214]
[1723230893572,28.48549,154.07,154.0,9.56778214]
[1723230893885,34.8514,154.05,153.99,9.56778214]
[1723230894186,6.4918,154.04,153.99,9.56778214]
[1723230894567,16.0746,154.02,153.99,9.56778214]
[1723230894794,16.0746,154.02,153.98,9.57211557]
[1723230894966,16.0746,154.02,153.97,9.57211557]
[1723230895197,16.0746,154.02,153.93,37.66848102]
[1723230895383,16.0746,154.02,153.97,9.57365423]
[1723230895879,16.0746,154.02,153.96,9.57365423]
[1723230900797,41.49,153.99,153.93,9.57365423]
[1723230900997,28.36,153.95,153.93,9.57365423]
[1723230901165,0.12549,153.94,153.9,9.57627018]
[1723230901495,0.37647,153.94,153.89,9.57627018]
[1723230901662,16.5409,153.96,153.89,9.57627018]
[1723230901866,16.5409,154.0,153.91,28.36]
[1723230902077,16.5409,154.0,153.93,37.93627018]
[1723230902593,28.36,153.99,153.92,9.57627018]
[1723230902788,34.8539,153.99,153.91,9.57627018]
[1723230903098,28.36,153.99,153.91,9.57627018]
[1723230903271,16.5409,154.0,153.92,28.36]
[1723230903464,16.5409,154.0,153.92,37.93627018]
[1723230903683,16.5409,154.0,153.93,9.57627018]
[1723230903891,16.5409,154.0,153.92,37.93627018]
[1723230904275,16.5409,154.0,153.93,9.57627018]
[1723230904598,34.9958,154.03,153.94,37.92443554]
[1723230904980,6.6358,154.03,153.94,37.92443554]
[1723230905286,6.6358,154.03,153.94,37.9249294]
[1723230905482,6.6358,154.03,153.94,9.5649294]
[1723230905682,34.9958,154.03,153.94,9.5649294]
[1723230906189,16.209,154.04,153.97,28.36]
[1723230906383,6.2401,154.07,153.99,28.36]
[1723230906591,6.2401,154.07,153.99,1.29853494]
[1723230906795,34.6001,154.07,153.97,37.92570812]
[1723230907169,6.2401,154.07,153.98,9.56570812]
[1723230907369,6.2401,154.07,153.99,1.29846373]
[1723230907571,6.2401,154.07,153.99,39.22417185]
[1723230907776,6.2401,154.07,154.0,9.56570812]
[1723230907978,16.209,154.08,154.01,1.29835861]
[1723230908193,16.209,154.08,154.02,1.29828693]
[1723230908395,16.209,154.08,154.0,9.56570812]
[1723230908396,16.209,154.08,154.0,9.55949279]
[1723230908598,34.8508,154.07,153.98,26.16659279]
[1723230908891,34.8515,154.05,153.96,9.55949279]
[1723230909480,0.12549,154.04,153.96,9.55949279]
[1723230909884,6.61729,154.04,153.96,9.55949279]
[1723230910211,6.61729,154.04,153.95,9.55949279]
[1723230910212,0.12549,154.04,153.95,9.55949279]
[1723230910376,6.74278,154.04,153.95,9.55949279]
[1723230910575,0.25098,154.04,153.95,9.55949279]
[1723230911187,0.25098,154.04,153.96,9.55949279]
[1723230912298,0.25098,154.04,153.95,37.91949279]
[1723230913386,0.25098,154.04,153.96,9.55949279]
[1723230913891,34.6532,154.05,153.96,9.55949279]
[1723230914084,6.2932,154.05,153.97,37.91949279]
[1723230914285,16.209,154.08,153.97,37.91949279]
[1723230914484,16.209,154.08,153.99,28.36]
[1723230915499,0.25098,154.07,153.99,28.36]
[1723230915996,16.209,154.08,153.99,28.36]
[1723230916984,16.209,154.08,153.99,29.65832639]
[1723230917190,16.209,154.08,154.01,28.36]
[1723230917512,16.209,154.08,154.02,1.29827001]
[1723230917999,16.209,154.08,154.01,29.65827104]
[1723230918207,16.209,154.08,153.97,6.3592]
[1723230918208,16.203,154.12,154.03,28.36]
[1723230919116,16.203,154.12,154.05,28.36]
[1723230920225,0.7539316,154.13,154.07,28.36]
[1723230920385,0.7539316,154.13,154.08,1.29769795]
[1723230920589,0.7539316,154.13,154.07,28.36]
[1723230921411,0.7539316,154.13,154.11,28.36]
[1723230921626,0.7539316,154.13,154.12,1.29752114]
[1723230922131,0.7539316,154.13,154.12,1.29751416]
[1723230922298,0.7539316,154.13,154.11,28.36]
[1723230923626,0.7539316,154.13,154.11,34.879]
[1723230926039,0.7539316,154.13,154.11,28.36]
[1723230926828,0.7539316,154.13,154.08,28.36]
[1723230929043,0.7539316,154.13,154.12,28.36]
[1723230938032,15.7089,154.2,154.15,28.36]
[1723230938432,15.7089,154.2,154.17,28.36]
[1723230938756,15.7089,154.2,154.15,28.36]
[1723230938958,15.7089,154.2,154.13,28.36]
[1723230939129,0.12549,154.19,154.11,28.36]
[1723230939328,0.37647,154.19,154.11,28.36]
[1723230939532,0.37647,154.19,154.03,6.6336]
[1723230939533,0.37647,154.19,154.09,28.36]
[1723230939734,0.12549,154.16,154.07,28.36]
[1723230940041,0.37647,154.16,154.07,28.36]
[1723230940226,0.12549,154.16,154.07,28.36]
[1723230940644,34.8473,154.15,154.05,28.36]
[1723230941041,15.55549,154.14,154.03,37.57457006]
[1723230941245,15.55549,154.14,154.01,35.14137927]
[1723230941246,6.4893,154.1,154.01,35.14137927]
[1723230941559,15.43,154.08,153.99,28.36]
[1723230941732,6.43459,154.11,154.03,36.44]
[1723230941934,6.3091,154.11,154.03,36.44]
[1723230942141,6.3091,154.11,154.05,36.44]
[1723230942350,6.3091,154.11,154.01,36.44]
[1723230942658,0.37647,154.1,153.99,36.44]
[1723230942953,6.86577,154.1,153.99,36.44]
[1723230943154,0.37647,154.1,153.99,36.44]
[1723230943376,6.4906,154.07,153.97,36.44]
[1723230943658,6.4906,154.07,153.95,36.44]
[1723230943659,28.2303,154.06,153.95,36.44]
[1723230943853,0.12549,154.05,153.95,36.44]
[1723230944047,21.7391,154.06,153.97,36.44]
[1723230945357,0.12549,154.05,153.97,36.44]
[1723230945864,21.7391,154.06,153.97,36.44]
[1723230948865,6.61699,154.05,153.95,36.44]
[1723230949863,0.12549,154.05,153.95,36.44]
[1723230950562,0.25098,154.05,153.95,36.44]
[1723230952836,28.23,154.06,153.97,36.44]
[1723230953250,28.23,154.06,153.95,36.44]
[1723230954062,0.12549,154.05,153.95,36.44]
[1723230954359,0.37647,154.05,153.95,36.44]
[1723230954548,0.37647,154.05,153.97,36.44]
[1723230954756,21.7391,154.06,153.99,36.44]
[1723230956959,21.7391,154.06,154.01,36.44]
[1723230958641,15.43,154.06,154.03,36.44]
[1723230958838,21.4604,154.1,154.05,36.44]
[1723230960170,21.4604,154.1,154.02,9.55906478]
[1723230960171,21.4604,154.1,154.03,36.44]
[1723230960374,21.4604,154.1,153.99,16.5368]
[1723230960375,21.4604,154.1,154.01,9.55906478]
[1723230960669,6.4897,154.09,153.99,45.99906478]
[1723230960871,27.9497,154.1,154.0,7.79824647]
[1723230961050,0.12549,154.09,154.0,7.79824647]
[1723230961249,0.12549,154.09,153.99,45.99230465]
[1723230961552,0.12549,154.09,154.0,7.79830919]
[1723230961754,6.86627,154.09,153.99,45.9929202]
[1723230962051,6.61609,154.07,153.99,9.5529202]
[1723230962381,26.46387,154.06,153.96,9.5529202]
[1723230962669,6.0874,154.06,153.99,36.44]
[1723230962846,6.0874,154.06,153.97,45.9929202]
[1723230963668,6.0874,154.06,153.98,28.36]
[1723230964750,6.0874,154.06,153.99,9.55932073]
[1723230965758,0.12549,154.05,153.99,9.55932073]
[1723230965965,6.0874,154.06,153.99,9.55932073]
[1723230966578,6.0874,154.06,154.02,28.36]
[1723230966757,6.0874,154.06,154.0,1.29850937]
[1723230966758,21.7086,154.1,154.04,28.36]
[1723230966951,21.7086,154.1,154.06,28.36]
[1723230967445,21.7086,154.1,154.02,10.85744564]
[1723230967446,21.7086,154.1,154.08,28.36]
[1723230967850,21.9451,154.16,154.08,28.36]
[1723230968156,21.9451,154.16,154.1,28.36]
[1723230969873,21.9451,154.16,154.09,36.41]
[1723230970652,21.9451,154.16,154.07,45.9580723]
[1723230972167,21.9451,154.16,154.07,9.56204489]
[1723230972168,0.12549,154.15,154.07,9.56204489]
[1723230972369,6.4876,154.14,154.06,9.56204489]
[1723230972675,0.37647,154.15,154.05,9.56204489]
[1723230972676,6.86367,154.15,154.05,9.56204489]
[1723230972856,0.37647,154.15,154.05,45.97204489]
[1723230973450,0.37647,154.15,154.07,36.41]
[1723230974956,6.4876,154.14,154.06,9.56204489]
[1723230975162,6.4876,154.14,154.05,36.41]
[1723230975163,6.4884,154.12,154.05,9.56204489]
[1723230975358,6.4884,154.12,154.03,36.41]
[1723230975359,0.25098,154.13,154.03,45.97204489]
[1723230975557,0.12549,154.15,154.05,36.41]
[1723230975759,20.25098,154.15,154.06,9.56204489]
[1723230975977,26.86367,154.15,154.06,9.56204489]
[1723230976169,26.86367,154.15,154.05,45.97204489]
[1723230976369,20.0,154.15,154.06,9.56204489]
[1723230976565,21.9451,154.16,154.06,9.56204489]
[1723230976967,28.432,154.16,154.07,9.56204489]
[1723230977685,0.25098,154.15,154.07,9.56204489]
[1723230978291,0.25098,154.14,154.07,9.56204489]
[1723230978473,0.25098,154.14,154.08,9.56204489]
[1723230980089,6.6629,154.11,154.05,9.56204489]
[1723230980380,0.25098,154.1,154.06,9.56204489]
[1723230980583,0.25098,154.1,154.05,9.56204489]
[1723230980756,0.25098,154.1,154.06,9.56204489]
[1723230980961,6.6629,154.11,154.05,9.56204489]
[1723230981181,6.6629,154.11,154.06,9.56204489]
[1723230981568,6.6629,154.11,154.07,9.56204489]
[1723230982391,6.6629,154.11,154.07,9.592024]
[1723230982889,6.6629,154.11,154.07,9.59199393]
[1723230983267,6.6629,154.11,154.08,9.59199393]
[1723230983977,15.957,154.13,154.09,46.00199393]
[1723230984180,15.957,154.13,154.1,9.59199393]
[1723230984679,15.957,154.13,154.11,9.59199393]
[1723230984888,15.957,154.13,154.07,36.41]
[1723230984889,15.957,154.13,154.1,9.59199393]
[1723230985471,15.957,154.13,154.11,9.59199393]
[1723230985993,15.957,154.13,154.11,9.58914602]
[1723230988368,6.5839,154.15,154.09,36.41]
[1723230988566,6.5839,154.15,154.13,9.58556271]
[1723230989090,6.5839,154.15,154.14,9.58556271]
[1723230989394,6.5839,154.15,154.05,36.41]
[1723230989577,6.5839,154.15,154.11,9.58618679]
[1723230991081,6.5839,154.15,154.13,9.58618679]
[1723230991676,6.5839,154.15,154.12,9.58618679]
[1723230993069,6.5839,154.15,154.12,9.57533065]
[1723230993500,6.5839,154.15,154.12,9.57502018]
[1723230993687,6.5839,154.15,154.13,9.57502018]
[1723230995702,6.5839,154.15,154.14,9.57502018]
[1723230996402,16.5864,154.16,154.14,9.57502018]
[1723230996576,16.5864,154.16,154.14,9.56904282]
[1723230997377,6.3022,154.19,154.14,9.56904282]
[1723230997577,2.3022,154.19,154.14,9.56904282]
[1723230998305,2.3022,154.19,154.14,39.56904282]
[1723230999003,15.0618,154.2,154.16,9.56904282]
[1723230999784,16.1163,154.24,154.16,37.88904282]
[1723231000106,16.1163,154.24,154.16,67.8653081]
[1723231000283,16.1163,154.24,154.16,37.8653081]
[1723231000605,16.1163,154.24,154.17,9.5453081]
[1723231001393,16.1163,154.24,154.16,37.8653081]
[1723231001594,16.1163,154.24,154.17,9.5453081]
[1723231001992,16.1163,154.24,154.18,28.32]
[1723231004197,16.1163,154.24,154.18,37.87711777]
[1723231004404,16.1163,154.24,154.18,28.32]
[1723231005800,6.1561,154.26,154.18,28.32]
[1723231006195,43.4465,154.28,154.18,28.32]
[1723231007117,15.1265,154.28,154.2,28.32]
[1723231007420,15.1265,154.28,154.17,15.74201777]
[1723231007421,15.1265,154.28,154.22,28.32]
[1723231007623,0.8237984,154.29,154.24,28.32]
[1723231007807,0.8237984,154.29,154.24,29.61642071]
[1723231007986,0.8237984,154.29,154.26,28.32]
[1723231008191,0.8237984,154.29,154.28,28.32]
[1723231008798,0.8237984,154.29,154.24,37.87278591]
[1723231009013,0.8237984,154.29,154.24,28.32]
[1723231009230,0.8237984,154.29,154.24,9.55278591]
[1723231009426,0.8237984,154.29,154.22,37.87278591]
[1723231009714,0.8237984,154.29,154.22,28.32]
[1723231010503,28.44549,154.28,154.18,15.1609]
[1723231010707,28.69647,154.28,154.18,24.70737051]
[1723231011023,0.37647,154.28,154.19,37.86647051]
[1723231011389,28.69647,154.28,154.17,34.5049]
[1723231011715,0.12549,154.26,154.17,34.5049]
[1723231011919,20.12549,154.28,154.17,34.5049]
[1723231012127,48.44549,154.28,154.17,34.5049]
[1723231012294,0.25098,154.27,154.17,34.5049]
[1723231012494,0.12549,154.26,154.17,34.5049]
[1723231012798,6.483,154.25,154.15,28.32]
[1723231012995,0.25098,154.24,154.15,28.32]
[1723231013214,0.12549,154.24,154.17,28.32]
[1723231013414,20.0,154.28,154.19,28.32]
[1723231013618,0.12549,154.27,154.19,28.32]
[1723231013911,0.12549,154.28,154.21,28.32]
[1723231014113,0.12549,154.28,154.21,29.61672549]
[1723231014302,15.9502984,154.29,154.21,28.32]
[1723231014619,15.9502984,154.29,154.23,28.32]
[1723231014914,0.8237984,154.29,154.23,28.32]
[1723231015991,0.8237984,154.29,154.21,43.4809]
[1723231016195,0.8237984,154.29,154.21,28.32]
[1723231017196,0.25098,154.28,154.19,28.32]
[1723231017598,0.8237984,154.29,154.21,28.32]
[1723231017808,0.8237984,154.29,154.23,28.32]
[1723231018522,0.8237984,154.29,154.21,28.32]
[1723231019897,0.8237984,154.29,154.25,28.32]
[1723231020609,0.8237984,154.29,154.21,28.32]
[1723231021909,0.12549,154.28,154.21,28.32]
[1723231023611,16.4189,154.27,154.19,28.32]
[1723231023895,0.12549,154.26,154.17,49.6658]
[1723231024333,0.12549,154.26,154.17,43.4809]
[1723231024997,0.25098,154.26,154.17,28.32]
[1723231025513,0.12549,154.24,154.15,28.32]
[1723231025916,51.73448,154.24,154.13,28.32]
[1723231026105,0.12549,154.23,154.13,28.32]
[1723231026301,0.12549,154.22,154.13,28.32]
[1723231026521,0.25098,154.22,154.13,28.32]
[1723231027119,0.12549,154.23,154.15,28.32]
[1723231027617,0.12549,154.24,154.15,28.32]
[1723231027828,0.25098,154.24,154.15,28.32]
[1723231028019,15.4273,154.22,154.13,28.32]
[1723231028222,6.6097,154.21,154.13,28.32]
[1723231028422,6.73519,154.21,154.13,28.32]
[1723231030130,6.73519,154.21,154.15,28.32]
[1723231030614,6.6097,154.21,154.15,28.32]
[1723231030812,15.4273,154.22,154.17,28.32]
[1723231031141,6.3872,154.25,154.19,28.32]
[1723231031605,15.0369,154.26,154.21,28.32]
[1723231032727,7.1511984,154.29,154.21,28.32]
[1723231033424,0.8237984,154.29,154.2,9.55162787]
[1723231033601,0.8237984,154.29,154.23,28.32]
[1723231038220,0.8237984,154.29,154.21,28.32]
[1723231038419,0.12549,154.27,154.19,37.86537158]
[1723231038618,0.25098,154.27,154.19,28.32]
[1723231040642,0.12549,154.25,154.15,37.86537158]
[1723231040826,45.25098,154.25,154.15,37.86537158]
[1723231041139,0.12549,154.24,154.15,37.86537158]
[1723231041356,6.61139,154.19,154.12,16.32221472]
[1723231041651,6.61139,154.19,154.03,6.022]
[1723231041652,0.12549,154.18,154.09,9.54537158]
[1723231041829,0.12549,154.17,154.09,9.54537158]
[1723231042029,0.37647,154.17,154.09,9.54537158]
[1723231042255,0.37647,154.17,154.08,37.86537158]
[1723231043939,20.0,154.19,154.1,28.32]
[1723231044244,0.12549,154.2,154.12,28.32]
[1723231044549,22.5989,154.23,154.14,28.32]
[1723231044846,22.5989,154.23,154.16,28.32]
[1723231045724,22.5989,154.23,154.15,36.38]
[1723231047544,22.4805,154.27,154.19,36.38]
[1723231048219,22.4805,154.27,154.17,9.55888281]
[1723231048422,22.4805,154.27,154.21,36.38]
[1723231048645,0.8237984,154.29,154.18,9.55888281]
[1723231048646,0.8237984,154.29,154.23,36.38]
[1723231049648,6.4817,154.28,154.19,36.38]
[1723231049822,0.8237984,154.29,154.19,36.38]
[1723231049823,7.3050984,154.29,154.19,36.38]
[1723231050958,0.37647,154.28,154.19,36.38]
[1723231056352,6.4825,154.27,154.17,36.38]
[1723231056666,0.12549,154.26,154.17,36.38]
[1723231057255,0.25098,154.26,154.17,36.38]
[1723231057451,0.12549,154.25,154.17,36.38]
[1723231057755,0.25098,154.26,154.17,36.38]
[1723231058056,0.12549,154.26,154.17,36.38]
[1723231060232,0.12549,154.26,154.19,36.38]
[1723231061859,0.12549,154.26,154.17,36.38]
[1723231062160,6.60899,154.24,154.15,45.92469239]
[1723231063349,0.12549,154.23,154.15,45.92469239]
[1723231063536,0.12549,154.22,154.15,45.92469239]
[1723231063738,0.25098,154.22,154.15,36.38]
[1723231063939,0.12549,154.22,154.15,36.38]
[1723231064138,0.12549,154.23,154.15,36.38]
[1723231064339,0.37647,154.24,154.15,36.38]
[1723231065870,0.37647,154.24,154.17,28.29]
[1723231066380,0.37647,154.24,154.14,9.55426238]
[1723231066381,22.077,154.25,154.19,28.29]
[1723231066665,22.077,154.25,154.21,28.29]
[1723231066862,15.5218,154.25,154.23,28.29]
[1723231067164,23.4832984,154.29,154.23,28.29]
[1723231069848,23.4832984,154.29,154.25,28.29]
[1723231070858,17.2436984,154.29,154.25,28.29]
[1723231071243,0.8237984,154.29,154.25,28.29]
[1723231071467,0.8237984,154.29,154.27,28.29]
[1723231073873,0.8237984,154.29,154.25,28.29]
[1723231074046,0.8237984,154.29,154.22,28.29]
[1723231074249,7.3050984,154.29,154.22,28.29]
[1723231075158,0.8237984,154.29,154.22,28.29]
[1723231075566,7.3050984,154.29,154.22,28.29]
[1723231075884,0.8237984,154.29,154.22,28.29]
[1723231077748,0.8237984,154.29,154.17,15.8617]
[1723231077749,0.8237984,154.29,154.24,28.29]
[1723231077943,0.8237984,154.29,154.2,9.55282684]
[1723231077944,0.8237984,154.29,154.26,28.29]
[1723231080469,0.8237984,154.29,154.28,28.29]
[1723231084357,0.8237984,154.29,154.26,28.29]
[1723231084673,0.8237984,154.29,154.24,28.29]
[1723231085051,0.8237984,154.29,154.26,28.29]
[1723231085387,0.8237984,154.29,154.28,28.29]
[1723231086478,0.8237984,154.29,154.26,28.29]
[1723231087574,0.8237984,154.29,154.28,28.29]
[1723231089250,0.8237984,154.29,154.26,28.29]
[1723231089679,0.8237984,154.29,154.23,9.54047556]
[1723231089680,7.90374381,154.38,154.28,28.29]
[1723231089885,7.90374381,154.38,154.27,43.38882596]
[1723231089886,6.3683,154.4,154.34,28.29]
[1723231092888,15.8945,154.43,154.36,28.29]
[1723231094487,0.8237984,154.44,154.4,28.29]
[1723231095583,0.8237984,154.44,154.42,28.29]
[1723231095963,0.8237984,154.44,154.4,28.29]
[1723231098387,0.8237984,154.44,154.42,28.29]
[1723231101707,1.01796,154.5,154.43,1.29472412]
[1723231101900,1.01796,154.5,154.48,25.79]
[1723231102104,1.01796,154.5,154.46,28.29]
[1723231102287,1.01796,154.5,154.44,28.29]
[1723231104500,1.01796,154.5,154.42,28.29]
[1723231104706,1.01796,154.5,154.44,28.29]
[1723231105678,1.01796,154.5,154.41,28.29]
[1723231106094,21.01796,154.5,154.41,28.29]
[1723231106283,0.25098,154.49,154.41,28.29]
[1723231106606,27.49046,154.5,154.43,28.29]
[1723231106607,21.01796,154.5,154.43,28.29]
[1723231106801,1.01796,154.5,154.43,28.29]
[1723231106997,1.01796,154.5,154.45,28.29]
[1723231107210,1.01796,154.5,154.38,6.1505]
[1723231107385,1.01796,154.5,154.43,28.29]
[1723231109330,7.49046,154.5,154.43,28.29]
[1723231109532,7.49046,154.5,154.37,18.15769408]
[1723231109533,22.0572,154.48,154.41,28.29]
[1723231109814,6.59949,154.47,154.39,28.29]
[1723231110016,0.12549,154.47,154.39,28.29]
[1723231110392,22.0572,154.48,154.41,28.29]
[1723231110592,0.12549,154.47,154.41,28.29]
[1723231110995,0.12549,154.47,154.37,15.593]
[1723231110996,22.0572,154.48,154.43,28.29]
[1723231111214,15.4343,154.48,154.43,28.29]
[1723231112212,6.4738,154.47,154.39,28.29]
[1723231112387,0.12549,154.47,154.39,28.29]
[1723231112718,6.59939,154.47,154.39,28.29]
[1723231112941,13.0976,154.45,154.37,28.29]
[1723231113095,0.12549,154.44,154.37,28.29]
[1723231113295,6.4757,154.43,154.35,28.29]
[1723231113500,0.12549,154.39,154.31,28.29]
[1723231113801,6.72808,154.39,154.31,28.29]
[1723231114110,0.12549,154.39,154.31,28.29]
[1723231114318,43.4735,154.4,154.33,28.29]
[1723231114319,9.05997,154.4,154.33,28.29]
[1723231114613,9.05997,154.4,154.35,28.29]
[1723231115500,0.12549,154.44,154.32,28.29]
[1723231115802,0.12549,154.44,154.36,36.28]
[1723231115999,13.0975,154.45,154.36,36.28]
[1723231116522,0.37647,154.44,154.36,36.28]
[1723231116697,0.25098,154.44,154.36,36.28]
[1723231116903,0.12549,154.44,154.36,36.28]
[1723231117199,6.6229,154.45,154.36,36.28]
[1723231117409,6.6229,154.45,154.38,36.28]
[1723231117995,6.6229,154.45,154.36,36.28]
[1723231118415,6.6229,154.45,154.38,36.28]
[1723231120015,6.6229,154.45,154.32,36.28]
[1723231120016,36.53098,154.44,154.32,36.28]
[1723231120219,20.25098,154.43,154.32,36.28]
[1723231120529,6.60139,154.42,154.32,36.28]
[1723231120819,0.12549,154.41,154.32,36.28]
[1723231121021,6.60179,154.41,154.32,36.28]
[1723231121326,0.12549,154.4,154.32,36.28]
[1723231121529,6.60219,154.4,154.32,36.28]
[1723231121703,0.12549,154.4,154.32,36.28]